Workbook

Sheet Sheet1
I1: Options Theoretical Calculator
B2: Input Parameters
B3: Option | C3: Put | E3: =IF(C3="Call","c","p") -> p | I3: =IF(I32=1,"Theoretical Price",IF(I32=2,"Delta",IF(I32=3,"Gamma",IF(I32=4,"Vega",IF(I32=5,"Theta","Rho"))))) -> Theoretical Price
B4: Undelying Price | C4: 410
B5: Strike Price | C5: 400
B6: DTE (days) | C6: 100
B7: Risk-free rate | C7: 0
B8: Volatility | C8: 0.5
B9: Dividend yield | C9: 0
B11: Theoretical Values
B12: Theoretical Price | C12: =BSM($E$3,"p",$C$4,$C$5,($C$6/365),$C$7,$C$8,$C$9) -> 37.3513154
B13: Delta | C13: =BSM($E$3,"d",$C$4,$C$5,($C$6/365),$C$7,$C$8,$C$9) -> -0.4109093862
B14: Gamma | C14: =BSM($E$3,"g",$C$4,$C$5,($C$6/365),$C$7,$C$8,$C$9) -> 0.003624844558
B15: Vega | C15: =BSM($E$3,"v",$C$4,$C$5,($C$6/365),$C$7,$C$8,$C$9) -> 0.8347073565
B16: Theta | C16: =BSM($E$3,"t",$C$4,$C$5,($C$6/365),$C$7,$C$8,$C$9) -> -0.2086768391
B17: Rho | C17: =BSM($E$3,"r",$C$4,$C$5,($C$6/365),$C$7,$C$8,$C$9) -> -0.5639018185
B19: IV Calculation
B20: Option | C20: =$C$3 -> Put
B21: Market Option Price | C21: 8
B22: Implied Volatility | C22: =IF($C$20="Call",ImpliedCallVolatility($C$4,$C$5,($C$6/365),$C$7,$C$21,$C$9),ImpliedPutVolatility($C$4,$C$5,($C$6/365),$C$7,$C$21,$C$9)) -> 0.1462173462
I30: 50
D31: Chart Settings
D32: Underlying price range: | F32: Time range: | I32: 1 | J32: =IF(I32=1,"p",IF(I32=2,"d",IF(I32=3,"g",IF(I32=4,"v",IF(I32=5,"t","r"))))) -> p | K32: =TODAY()+K33 -> 2023-09-02 | L32: =TODAY()+L33 -> 2023-09-22T21:10:35.294 | M32: 2023-10-13T18:21:10.588 | N32: 2023-11-03T15:31:45.882 | O32: 2023-11-24T12:42:21.176 | P32: 2023-12-15T09:52:56.471 | Q32: 2024-01-05T07:03:31.765 | R32: 2024-01-26T04:14:07.059 | S32: 2024-02-16T01:24:42.353 | T32: 2024-03-07T22:35:17.647 | U32: 2024-03-28T19:45:52.941 | V32: 2024-04-18T16:56:28.235 | W32: 2024-05-09T14:07:03.529 | X32: 2024-05-30T11:17:38.824 | Y32: 2024-06-20T08:28:14.118 | Z32: 2024-07-11T05:38:49.412 | AA32: 2024-08-01T02:49:24.706 | AB32: 2024-08-22
D33: Minimum : | E33: 200 | F33: Start point : | G33: 10 | I33: Underlying Price | K33: =$G$33 -> 10 | L33: =K$33+($G$34-$G$33)/17 -> 30.88235294 | M33: =L$33+($G$34-$G$33)/17 -> 51.76470588 | N33: 72.64705882 | O33: 93.52941176 | P33: 114.4117647 | Q33: 135.2941176 | R33: 156.1764706 | S33: 177.0588235 | T33: 197.9411765 | U33: 218.8235294 | V33: 239.7058824 | W33: 260.5882353 | X33: 281.4705882 | Y33: 302.3529412 | Z33: 323.2352941 | AA33: 344.1176471 | AB33: =$G$34 -> 365
D34: Maximum : | E34: 600 | F34: End point : | G34: 365 | I34: =J34/$J$45-1 -> 0.5789473684 | J34: =$E$34 -> 600 | K34: =BSM($E$3,$J$32,$J34,$C$5,(K$33/365),$C$7,$G$35,$C$9) -> 3.699582937e-06 | L34: =BSM($E$3,$J$32,$J34,$C$5,(L$33/365),$C$7,$G$35,$C$9) -> 0.05634778551 | M34: =BSM($E$3,$J$32,$J34,$C$5,(M$33/365),$C$7,$G$35,$C$9) -> 0.5125074869 | N34: 1.484800158 | O34: 2.851593912 | P34: 4.484427288 | Q34: 6.290218082 | R34: 8.206032974 | S34: 10.18965079 | T34: 12.21250563 | U34: 14.25503906 | V34: 16.30371177 | W34: 18.34907245 | X34: 20.38449184 | Y34: 22.40531831 | Z34: 24.40830474 | AA34: 26.39121309 | AB34: 28.35253725
D35: What to show: | E35: 601 | F35: Volatility Impact: | G35: =$I$30*0.01 -> 0.5 | I35: 0.5263157895 | J35: =J34-($E$34-$E$33)/20 -> 580 | K35: =BSM($E$3,$J$32,$J35,$C$5,(K$33/365),$C$7,$G$35,$C$9) -> 2.909099178e-05 | L35: 0.1180626267 | M35: 0.8240724698 | N35: 2.125223546 | O35: 3.819346363 | P35: 5.751428451 | Q35: 7.822971336 | R35: 9.972641372 | S35: 12.16179352 | T35: 14.3656691 | U35: 16.56818177 | V35: 18.75878833 | W35: 20.93056687 | X35: 23.07900697 | Y35: 25.20122998 | Z35: 27.29547579 | AA35: 29.36075844 | AB35: 31.39663124
I36: 0.4736842105 | J36: 560 | K36: 0.000208674869 | L36: 0.2417256241 | M36: 1.31021677 | N36: 3.021621939 | O36: 5.093320005 | P36: 7.354457092 | Q36: 9.708847764 | R36: 12.10152312 | S36: 14.50031026 | T36: 16.886047 | U36: 19.24725025 | V36: 21.57710465 | W36: 23.87170078 | X36: 26.12897158 | Y36: 28.34803257 | Z36: 30.52876301 | AA36: 32.67153492 | AB36: 34.77703486
I37: 0.4210526316 | J37: 540 | K37: 0.001350927139 | L37: 0.4823770066 | M37: 2.057172462 | N37: 4.264046973 | O37: 6.758922756 | P37: 9.372358265 | Q37: 12.02020748 | R37: 14.65918615 | S37: 17.26658186 | T37: 19.83056628 | U37: 22.34530217 | V37: 24.80834437 | W37: 27.21920001 | X37: 29.57850337 | Y37: 31.88753031 | Z37: 34.14790677 | AA37: 36.36143156 | AB37: 38.52996789
I38: 0.3684210526 | J38: 520 | K38: 0.007801530972 | L38: 0.9356216356 | M38: 3.18523775 | N38: 5.967173274 | O38: 8.919719458 | P38: 11.89791621 | Q38: 14.84052681 | R38: 17.72129392 | S38: 20.52973324 | T38: 23.26284909 | U38: 25.92128896 | V38: 28.50745761 | W38: 31.02455553 | X38: 33.47607707 | Y38: 35.86554692 | Z38: 38.19638368 | AA38: 40.47183301 | AB38: 42.694939
I39: 0.3157894737 | J39: 500 | K39: 0.03969091632 | L39: 1.758678734 | M39: 4.856341724 | N39: 8.273129277 | O39: 11.69856877 | P39: 15.03832717 | Q39: 18.26459483 | R39: 21.37274545 | S39: 24.36666734 | T39: 27.2532326 | U39: 30.0400763 | V39: 32.73468868 | W39: 35.34406089 | X39: 37.87457231 | Y39: 40.33198351 | Z39: 42.72147387 | AA39: 45.04769525 | AB39: 47.31482899
I40: 0.2631578947 | J40: 480 | K40: 0.1755938682 | L40: 3.19384974 | M40: 7.279301221 | N40: 11.35240554 | O40: 15.23740185 | P40: 18.91470661 | Q40: 22.39800297 | R40: 25.70722231 | S40: 28.86168638 | T40: 31.87846248 | U40: 34.77220186 | V40: 37.55538906 | W40: 40.23867224 | X40: 42.83117319 | Y40: 45.34075165 | Z40: 47.77422234 | AA40: 50.13753099 | AB40: 52.43589655
I41: 0.2105263158 | J41: 460 | K41: 0.6668059358 | L41: 5.586418742 | M41: 10.70962123 | N41: 15.40144834 | O41: 19.6949055 | P41: 23.66018478 | Q41: 27.35563129 | R41: 30.82599171 | S41: 34.10554315 | T41: 37.22093802 | U41: 40.19327289 | V41: 43.03953635 | W41: 45.77362454 | X41: 48.40706381 | Y41: 50.94953386 | Z41: 53.40925335 | AA41: 55.79326898 | AB41: 58.10767559
I42: 0.1578947368 | J42: 440 | K42: 2.147912735 | L42: 9.382688785 | M42: 15.43986705 | N42: 20.63535195 | O42: 25.24129538 | P42: 29.41609964 | Q42: 33.25880234 | R42: 36.83572852 | S42: 40.19374247 | T42: 43.36736743 | U42: 46.38288939 | V42: 49.26086434 | W42: 52.01772495 | X42: 54.6668521 | Y42: 57.21931342 | Z42: 59.68438723 | AA42: 62.06994316 | AB42: 64.38272478
I43: 0.1052631579 | J43: 420 | K43: 5.816994722 | L43: 15.09021201 | M43: 21.77677805 | N43: 27.27421275 | O43: 32.04943551 | P43: 36.32582309 | Q43: 40.23077881 | R43: 43.84511429 | S43: 47.22390311 | T43: 50.40667981 | U43: 53.42296539 | V43: 56.29549721 | W43: 59.04223114 | X43: 61.67764242 | Y43: 64.21360394 | Z43: 66.65999845 | AA43: 69.02515715 | AB43: 71.31618128
I44: =J44/$J$45-1 -> 0.05263157895 | J44: 400 | K44: 13.20291116 | L44: 23.18815483 | M44: 30.00331897 | N44: 35.52245625 | O44: 40.28188089 | P44: 44.52590695 | Q44: 48.39035471 | R44: 51.96000561 | S44: 55.29200474 | T44: 58.42704314 | U44: 61.39531785 | V44: 64.21997317 | W44: 66.91921386 | X44: 69.50766756 | Y44: 71.99729891 | Z44: 74.39804353 | AA44: 76.7182601 | AB44: 78.96506055
I45: 0 | J45: 380 | K45: 25.2670113 | L45: 33.99728647 | M45: 40.32848168 | N45: 45.54201757 | O45: 50.07409506 | P45: 54.13456634 | Q45: 57.84346439 | R45: 61.27706059 | S45: 64.48739724 | T45: 67.51186574 | U45: 70.37840558 | V45: 73.1085474 | W45: 75.71930142 | X45: 78.22438539 | Y45: 80.63505423 | Z45: 82.96067867 | AA45: 85.20916005 | AB45: 87.38723444
I46: -0.05263157895 | J46: 360 | K46: 41.51276008 | L46: 47.55290607 | M46: 52.83453385 | N46: 57.42266481 | O46: 61.51517722 | P46: 65.23807649 | Q46: 68.67304741 | R46: 71.87589651 | S46: 74.88656185 | T46: 77.73472703 | U46: 80.44314198 | V46: 83.02968757 | W46: 85.50871546 | X46: 87.89195019 | Y46: 90.18911575 | Z46: 92.4083827 | AA46: 94.55669468 | AB46: 96.64001182
I47: -0.1052631579 | J47: 340 | K47: 60.28524938 | L47: 63.54907114 | M47: 67.43825976 | N47: 71.15558149 | O47: 74.62884542 | P47: 77.87644677 | Q47: 80.92787763 | R47: 83.81014673 | S47: 86.54580314 | T47: 89.15330767 | U47: 91.64778687 | V47: 94.04172872 | W47: 96.34554202 | X47: 98.56798873 | Y47: 100.716515 | Z47: 102.7975052 | AA47: 104.8164785 | AB47: 106.7782417
I48: -0.1578947368 | J48: 320 | K48: 80.03175273 | L48: 81.40694299 | M48: 83.88507338 | N48: 86.61850342 | O48: 89.35885502 | P48: 92.03066174 | Q48: 94.61167587 | R48: 97.09819636 | S48: 99.49333387 | T48: 101.8025861 | U48: 104.032061 | V48: 106.1877509 | W48: 108.2752487 | X48: 110.2996578 | Y48: 112.2655868 | Z48: 114.1771791 | AA48: 116.0381562 | AB48: 117.8518632
I49: -0.2105263158 | J49: 300 | K49: 100.0018421 | L49: 100.4526748 | M49: 101.7878309 | N49: 103.5805993 | O49: 105.5638763 | P49: 107.6146058 | Q49: 109.674485 | R49: 111.7148764 | S49: 113.7215882 | T49: 115.687846 | U49: 117.6108335 | V49: 119.489897 | W49: 121.325573 | X49: 123.1190434 | Y49: 124.8718234 | Z49: 126.5855792 | AA49: 128.2620223 | AB49: 129.9028464
I50: -0.2631578947 | J50: 280 | K50: 120.0000479 | L50: 120.1126879 | M50: =BSM($E$3,$J$32,$J50,$C$5,(M$33/365),$C$7,$G$35,$C$9) -> 120.7046906 | N50: 121.7313255 | O50: 123.0262781 | P50: 124.4751041 | Q50: 126.0087957 | R50: 127.585891 | S50: 129.181024 | T50: 130.7783886 | U50: 132.3680104 | V50: 133.9435674 | W50: 135.501079 | X50: 137.0380953 | Y50: 138.5531826 | Z50: 140.045589 | AA50: 141.5150241 | AB50: 142.9615098
I51: -0.3157894737 | J51: 260 | K51: 140.0000005 | L51: 140.0204417 | M51: 140.2295884 | N51: 140.7294818 | O51: 141.4765263 | P51: 142.4027884 | Q51: 143.4529505 | R51: 144.5870645 | S51: 145.777057 | T51: 147.0032143 | U51: 148.2515879 | V51: 149.5122156 | W51: 150.777919 | X51: 152.0434893 | Y51: 153.3051289 | Z51: 154.5600635 | AA51: 155.8062703 | AB51: 157.0422825
I52: -0.3684210526 | J52: 240 | K52: 160 | L52: 160.0025032 | M52: 160.0590683 | N52: 160.2592435 | O52: 160.6299989 | P52: 161.154302 | Q52: 161.8035393 | R52: 162.5503436 | S52: 163.3719298 | T52: 164.2502284 | U52: 165.171157 | V52: 166.1237883 | W52: 167.0996326 | X52: 168.092069 | Y52: 169.0959102 | Z52: 170.1070723 | AA52: 171.1223263 | AB52: 172.1391096
I53: -0.4210526316 | J53: 220 | K53: 180 | L53: 180.0001873 | M53: 180.0113062 | N53: 180.0744623 | O53: 180.2273795 | P53: 180.4827649 | Q53: 180.8365404 | R53: 181.2775747 | S53: 181.7930026 | T53: 182.3705468 | U53: 182.9993484 | V53: 183.6701351 | W53: 184.3751227 | X53: 185.1078276 | Y53: 185.8628652 | Z53: 186.6357648 | AA53: 187.4228102 | AB53: 188.2209056
I54: -0.4736842105 | J54: 200 | K54: 200 | L54: 200.0000075 | M54: 200.0014868 | N54: 200.0163283 | O54: 200.0663959 | P54: 200.16946 | Q54: 200.3340016 | R54: 200.5611836 | S54: 200.847896 | T54: 201.1889828 | U54: 201.5785742 | V54: 202.0108064 | W54: 202.4801738 | X54: 202.9816783 | Y54: 203.510868 | Z54: 204.0638222 | AA54: 204.63711 | AB54: 205.2277399
A74: 1
